fUST/lending_fUST_20250828
["ID","MTS","AMOUNT","RATE_DAILY","PERIOD"]
[381815554,1756357871021,-480.0,0.0002166,2]
[381815555,1756357871034,-506.48,0.0002166,2]
[381815556,1756357871043,-708.89,0.0002166,2]
[381815557,1756357871051,-480.0,0.0002166,2]
[381815558,1756357871061,-480.0,0.0002166,2]
[381815559,1756357871072,-480.0,0.0002166,2]
[381815560,1756357871082,-596.55,0.0002166,2]
[381815561,1756357871092,-881.6,0.0002166,2]
[381815562,1756357871103,-521.32,0.0002166,2]
[381815563,1756357871114,-480.0,0.0002166,2]
[381815564,1756357871264,-662.51,0.0002166,2]
[381815565,1756357871273,-853.94,0.0002166,2]
[381815566,1756357871283,-684.51,0.0002166,2]
[381815567,1756357871292,-525.5,0.0002166,2]
[381815568,1756357871301,-599.49,0.0002166,2]
[381815569,1756357871320,-480.0,0.0002166,2]
[381815570,1756357871332,-654.52,0.0002166,2]
[381815571,1756357871342,-510.29,0.0002166,2]
[381815572,1756357871351,-1154.7,0.0002166,2]
[381815573,1756357871360,-480.0,0.0002166,2]
[381815574,1756357871369,-480.0,0.0002166,2]
[381815575,1756357871378,-515.89,0.0002166,2]
[381815576,1756357871388,-480.0,0.0002166,2]
[381815577,1756357871397,-509.52754952,0.0002166,2]
[381815578,1756357871407,-500.0,0.00021663,2]
[381815579,1756357871416,-500.0,0.00021663,2]
[381815580,1756357871427,-151.0,0.00021699,2]
[381815581,1756357871437,-198.0,0.00021699,2]
[381815582,1756357871446,-500.0,0.00021699,2]
[381815583,1756357871456,-500.0,0.00021699,2]
[381815584,1756357871465,-151.0,0.00021699,2]
[381815585,1756357871475,-151.0,0.00021699,2]
[381815586,1756357871485,-500.0,0.00021699,2]
[381815587,1756357871494,-500.0,0.00021699,2]
[381815588,1756357871504,-500.0,0.00021699,2]
[381815589,1756357871513,-500.0,0.00021699,2]
[381815590,1756357871523,-500.0,0.00021699,2]
[381815591,1756357871534,-500.0,0.00021699,2]
[381815592,1756357871543,-500.0,0.00021699,2]
[381815593,1756357871552,-151.0,0.00021699,2]
[381815594,1756357871561,-500.0,0.00021699,2]
[381815595,1756357871571,-151.0,0.00021699,2]
[381815596,1756357871580,-151.0,0.00021699,2]
[381815597,1756357871590,-151.0,0.00021699,2]
[381815598,1756357871601,-500.0,0.00021699,2]
[381815599,1756357871610,-151.0,0.00021699,2]
[381815600,1756357871620,-500.0,0.00021699,2]
[381815601,1756357871629,-500.0,0.00021699,2]
[381815602,1756357871639,-500.0,0.00021699,2]
[381815603,1756357871648,-151.57731172,0.00021699,2]
[381815604,1756357871657,-500.0,0.00021699,2]
[381815605,1756357871666,-151.0,0.00021699,2]
[381815606,1756357871675,-151.0,0.00021699,2]
[381815607,1756357871686,-151.0,0.00021699,2]
[381815608,1756357871695,-500.0,0.00021699,2]
[381815609,1756357871705,-151.0,0.00021699,2]
[381815610,1756357871714,-1093.0,0.00021699,2]
[381815611,1756357871723,-151.0,0.00021699,2]
[381815612,1756357871732,-151.43634913,0.00021699,2]
[381815613,1756357871742,-151.0,0.00021699,2]
[381815614,1756357871751,-500.0,0.00021699,2]
[381815615,1756357871760,-500.0,0.00021699,2]
[381815616,1756357871770,-500.0,0.00021699,2]
[381815617,1756357871778,-500.0,0.00021699,2]
[381815618,1756357871788,-168.0,0.00021754,2]
[381815619,1756357871797,-480.0,0.00021758,2]
[381815620,1756357871807,-480.0,0.00021758,2]
[381815621,1756357871816,-480.0,0.00021758,2]
[381815622,1756357871826,-480.0,0.00021758,2]
[381815623,1756357871835,-805.95,0.00021758,2]
[381815624,1756357871844,-528.48,0.00021758,2]
[381815625,1756357871854,-480.0,0.00021758,2]
[381815626,1756357871863,-480.0,0.00021758,2]
[381815627,1756357871872,-480.0,0.00021758,2]
[381815628,1756357871881,-480.0,0.00021758,2]
[381815629,1756357871891,-480.0,0.00021758,2]
[381815630,1756357871900,-480.0,0.00021758,2]
[381815631,1756357871909,-480.0,0.00021758,2]
[381815632,1756357871919,-480.0,0.00021758,2]
[381815633,1756357871928,-536.00711133,0.00021758,2]
[381815634,1756357871937,-480.0,0.00021758,2]
[381815635,1756357871946,-480.0,0.00021758,2]
[381815636,1756357871955,-480.0,0.00021758,2]
[381815637,1756357871964,-480.0,0.00021758,2]
[381815638,1756357871974,-480.0,0.00021758,2]
[381815639,1756357871983,-480.0,0.00021758,2]
[381815640,1756357871996,-480.0,0.00021758,2]
[381815641,1756357872006,-533.88,0.00021758,2]
[381815642,1756357872015,-482.77791867,0.00021758,2]
[381815643,1756357872025,-604.71,0.00021758,2]
[381815644,1756357872037,-480.0,0.00021758,2]
[381815645,1756357872049,-480.0,0.00021758,2]
[381815646,1756357872058,-480.0,0.00021758,2]
[381815647,1756357872068,-480.0,0.00021758,2]
[381815648,1756357872077,-795.22,0.00021758,2]
[381815649,1756357872087,-466.13720145,0.00021758,2]
[381815650,1756357872096,-480.0,0.00021758,2]
[381815651,1756357872105,-697.35,0.00021758,2]
[381815652,1756357872115,-480.0,0.00021758,2]
[381815653,1756357872124,-480.0,0.00021758,2]
[381815654,1756357872133,-480.0,0.00021758,2]
[381815655,1756357872143,-480.0,0.00021758,2]
[381815656,1756357872152,-480.0,0.00021758,2]
[381815657,1756357872161,-480.0,0.00021758,2]
[381815658,1756357872170,-480.0,0.00021758,2]
[381815659,1756357872179,-480.0,0.00021758,2]
[381815660,1756357872188,-480.0,0.00021758,2]
[381815661,1756357872197,-480.0,0.00021758,2]
[381815662,1756357872206,-529.5,0.00021758,2]
[381815663,1756357872216,-480.0,0.00021758,2]
[381815664,1756357872225,-480.0,0.00021758,2]
[381815665,1756357872234,-480.0,0.00021758,2]
[381815666,1756357872243,-480.0,0.00021758,2]
[381815667,1756357872253,-253.22541651,0.00021758,2]
[381815668,1756357872262,-480.0,0.00021758,2]
[381815669,1756357872271,-480.0,0.00021758,2]
[381815670,1756357872280,-500.16,0.00021758,2]
[381815671,1756357872290,-597.76,0.00021758,2]
[381815672,1756357872299,-480.0,0.00021758,2]
[381815673,1756357872309,-545.7,0.00021758,2]
[381815674,1756357872318,-899.98,0.00021758,2]
[381815675,1756357872329,-480.0,0.00021758,2]
[381815676,1756357872339,-492.04,0.00021758,2]
[381815677,1756357872349,-573.17,0.00021758,2]
[381815678,1756357872358,-480.0,0.00021758,2]
[381815679,1756357872368,-480.0,0.00021758,2]
[381815680,1756357872377,-402.50906332,0.00021758,2]
[381815681,1756357872387,-554.12,0.00021758,2]
[381815682,1756357872399,-428.62835518,0.00021758,2]
[381815683,1756357872408,-534.5,0.00021758,2]
[381815684,1756357872422,-480.0,0.00021758,2]
[381815685,1756357872436,-279.38388885,0.00021758,2]
[381815686,1756357872446,-522.11,0.00021758,2]
[381815687,1756357872456,-515.25,0.00021758,2]
[381815688,1756357872465,-480.0,0.00021758,2]
[381815689,1756357872474,-510.37,0.00021758,2]
[381815690,1756357872483,-480.0,0.00021758,2]
[381815691,1756357872492,-480.0,0.00021758,2]
[381815692,1756357872502,-624.42,0.00021758,2]
[381815693,1756357872511,-480.0,0.00021758,2]
[381815694,1756357872523,-480.0,0.00021758,2]
[381815695,1756357872539,-480.0,0.00021758,2]
[381815696,1756357872549,-480.0,0.00021758,2]
[381815697,1756357872558,-818.02,0.00021758,2]
[381815698,1756357872568,-480.0,0.00021758,2]
[381815699,1756357872576,-480.0,0.00021758,2]
[381815700,1756357872585,-480.0,0.00021758,2]
[381815701,1756357872595,-786.47,0.00021758,2]
[381815702,1756357872603,-7417.32,0.00021758,2]
[381815703,1756357872612,-1601.06,0.00021758,2]
[381815704,1756357872621,-6114.74,0.00021758,2]
[381815705,1756357872630,-804.83,0.0002176,2]
[381815706,1756357872639,-826.54,0.0002176,2]
[381815707,1756357872648,-1640.49,0.0002176,2]
[381815708,1756357872657,-1700.67,0.0002176,2]
[381815709,1756357872667,-480.0,0.0002176,2]
[381815710,1756357872676,-731.13,0.0002176,2]
[381815711,1756357872685,-899.999901,0.0002178,2]
[381815712,1756357872695,-420.0,0.00021788,2]
[381815713,1756357872710,-151.0,0.000218,4]
[381815714,1756357872724,-2000.0,0.00021816,2]
[381815715,1756357872734,-2000.0,0.00021816,2]
[381815716,1756357872744,-269.0,0.00021817,2]
[381815717,1756357872753,-586.84147924,0.00021821,2]
[381815718,1756357872763,-1000.0,0.00021821,2]
[381815719,1756357872771,-1000.0,0.00021821,2]
[381815720,1756357872781,-686.98362334,0.00021821,2]
[381815721,1756357872791,-1000.0,0.00021821,2]
[381815722,1756357872802,-1000.0,0.00021821,2]
[381815723,1756357872811,-326.0,0.00021831,2]
[381815724,1756357872820,-2169.42,0.00021832,2]
[381815725,1756357872830,-639.46,0.00021832,2]
[381815726,1756357872839,-1495.6,0.00021832,2]
[381815727,1756357872848,-515.47,0.00021832,2]
[381815728,1756357872858,-759.727,0.00021834,2]
[381815729,1756357872868,-1680.0,0.00021893,2]
[381815730,1756357872878,-150.0,0.000219,2]
[381815731,1756357872887,-647.0,0.000219,2]
[381815732,1756357872897,-427.26550493,0.00021903,2]
[381815733,1756357872907,-1707.3529577,0.00021903,2]
[381815734,1756357872916,-749.7549237,0.00021916,2]
[381815735,1756357872926,-2000.0,0.00021916,2]
[381815736,1756357872935,-2000.0,0.00021916,2]
[381815737,1756357872947,-503.61448562,0.00021916,2]
[381815738,1756357872958,-1075.25677081,0.00021916,2]
[381815739,1756357872967,-2000.0,0.00021916,2]
[381815740,1756357872978,-2000.0,0.00021916,2]
[381815741,1756357872989,-2000.0,0.00021916,2]
[381815742,1756357873000,-500.0,0.00021917,2]
[381815743,1756357873010,-500.0,0.00021917,2]
[381815744,1756357873020,-500.0,0.00021917,2]
[381815745,1756357873031,-500.0,0.00021917,2]
[381815746,1756357873041,-500.0,0.00021917,2]
[381815747,1756357873051,-500.0,0.00021917,2]
[381815748,1756357873061,-500.0,0.00021917,2]
[381815749,1756357873070,-224.052875,0.00021917,2]
[381815750,1756357873080,-179.691714,0.00021917,2]
[381815751,1756357873091,-153.0,0.00021918,2]
[381815752,1756357873100,-153.0,0.00021918,2]
[381815753,1756357873109,-153.0,0.00021918,2]
[381815754,1756357873118,-153.0,0.00021918,2]
[381815755,1756357873128,-153.0,0.00021918,2]
[381815756,1756357873137,-153.0,0.00021918,2]
[381815757,1756357873147,-153.0,0.00021918,2]
[381815758,1756357873156,-153.0,0.00021918,2]
[381815759,1756357873165,-151.87531,0.00021918,2]
[381815760,1756357873174,-151.0,0.00021918,2]
[381815761,1756357873186,-151.0,0.00021918,2]
[381815762,1756357873195,-151.0,0.00021918,2]
[381815763,1756357873205,-151.0,0.00021918,2]
[381815764,1756357873215,-290.01123324,0.00021918,2]
[381815765,1756357873224,-150.0,0.00021918,2]
[381815766,1756357873234,-480.0,0.00021928,2]
[381815767,1756357873243,-480.0,0.00021928,2]
[381815768,1756357873252,-786.65,0.00021928,2]
[381815769,1756357873262,-713.73,0.00021928,2]
[381815770,1756357873271,-480.0,0.00021928,2]
[381815771,1756357873281,-480.0,0.00021928,2]
[381815772,1756357873290,-480.0,0.00021928,2]
[381815773,1756357873299,-480.0,0.00021928,2]
[381815774,1756357873310,-480.0,0.00021928,2]
[381815775,1756357873320,-480.79,0.00021928,2]
[381815776,1756357873329,-480.0,0.00021928,2]
[381815777,1756357873339,-480.0,0.00021928,2]
[381815778,1756357873348,-480.0,0.00021928,2]
[381815779,1756357873357,-648.17,0.00021928,2]
[381815780,1756357873366,-480.0,0.00021928,2]
[381815781,1756357873375,-480.0,0.00021928,2]
[381815782,1756357873384,-533.59,0.00021928,2]
[381815783,1756357873393,-480.0,0.00021928,2]
[381815784,1756357873402,-655.42,0.00021928,2]
[381815785,1756357873411,-480.0,0.00021928,2]
[381815786,1756357873420,-480.0,0.00021928,2]
[381815787,1756357873429,-944.76,0.00021928,2]
[381815788,1756357873440,-480.0,0.00021928,2]
[381815789,1756357873450,-480.0,0.00021928,2]
[381815790,1756357873460,-1375.55,0.00021928,2]
[381815791,1756357873469,-537.18,0.00021928,2]
[381815792,1756357873478,-504.38,0.00021928,2]
[381815793,1756357873487,-480.0,0.00021928,2]
[381815794,1756357873496,-790.41,0.00021928,2]
[381815795,1756357873505,-510.07,0.00021928,2]
[381815796,1756357873516,-480.0,0.00021928,2]
[381815797,1756357873529,-480.0,0.00021928,2]
[381815798,1756357873541,-498.02,0.00021928,2]
[381815799,1756357873550,-541.05,0.00021928,2]
[381815800,1756357873559,-487.28,0.00021928,2]
[381815801,1756357873568,-480.0,0.00021928,2]
[381815802,1756357873577,-633.32,0.00021928,2]
[381815803,1756357873587,-657.6,0.00021928,2]
[381815804,1756357873596,-480.0,0.00021928,2]
[381815805,1756357873606,-644.12,0.00021928,2]
[381815806,1756357873615,-629.67515679,0.00021928,2]
[381815807,1756357873624,-560.98,0.00021928,2]
[381815808,1756357873633,-480.0,0.00021928,2]
[381815809,1756357873642,-574.0,0.00021928,2]
[381815810,1756357873651,-480.0,0.00021928,2]
[381815811,1756357873660,-502.35,0.00021928,2]
[381815812,1756357873670,-480.0,0.00021928,2]
[381815813,1756357873679,-179.11423784,0.00021928,2]
[381815814,1756357873688,-480.0,0.00021928,2]
[381815815,1756357873698,-480.0,0.00021928,2]
[381815816,1756357873707,-1511.51,0.00021928,2]
[381815817,1756357873716,-483.11412698,0.00021928,2]
[381815818,1756357873725,-497.56,0.00021928,2]
[381815819,1756357873734,-957.08,0.00021928,2]
[381815820,1756357873743,-1082.64,0.00021928,2]
[381815821,1756357873753,-607.12961876,0.00021928,2]
[381815822,1756357873762,-527.16,0.00021928,2]
[381815823,1756357873771,-480.0,0.00021928,2]
[381815824,1756357873781,-552.79837292,0.00021928,2]
[381815825,1756357873790,-480.0,0.00021928,2]
[381815826,1756357873799,-480.0,0.00021928,2]
[381815827,1756357873808,-865.85,0.00021928,2]
[381815828,1756357873953,-564.92,0.00021928,2]
[381815829,1756357873963,-480.0,0.00021928,2]
[381815830,1756357873972,-496.05,0.00021928,2]
[381815831,1756357873981,-480.0,0.00021928,2]
[381815832,1756357873993,-480.0,0.00021928,2]
[381815833,1756357874003,-959.96,0.00021928,2]
[381815834,1756357874012,-480.0,0.00021928,2]
[381815835,1756357874022,-480.0,0.00021928,2]
[381815836,1756357874031,-560.89,0.00021928,2]
[381815837,1756357874041,-480.0,0.00021928,2]
[381815838,1756357874050,-480.0,0.00021928,2]
[381815839,1756357874060,-516.82,0.00021928,2]
[381815840,1756357874069,-533.53,0.00021928,2]
[381815841,1756357874079,-480.0,0.00021928,2]
[381815842,1756357874088,-659.5,0.00021928,2]
[381815843,1756357874097,-480.0,0.00021928,2]
[381815844,1756357874106,-480.0,0.00021928,2]
[381815845,1756357874116,-480.0,0.00021928,2]
[381815846,1756357874125,-385.26578969,0.00021928,2]
[381815847,1756357874134,-480.83,0.00021928,2]
[381815848,1756357874144,-551.27,0.00021928,2]
[381815849,1756357874154,-983.06,0.00021928,2]
[381815850,1756357874164,-480.0,0.00021928,2]
[381815851,1756357874174,-480.0,0.00021928,2]
[381815852,1756357874185,-750.24,0.00021928,2]
[381815853,1756357874195,-519.97,0.00021928,2]
[381815854,1756357874206,-480.0,0.00021928,2]
[381815855,1756357874216,-2407.13,0.00021928,2]
[381815856,1756357874226,-480.0,0.00021928,2]
[381815857,1756357874235,-1445.41,0.00021928,2]
[381815858,1756357874245,-1263.67,0.00021928,2]
[381815859,1756357874255,-480.0,0.00021928,2]
[381815860,1756357874265,-922.14,0.00021928,2]
[381815861,1756357874275,-3847.08,0.00021928,2]
[381815862,1756357874284,-480.0,0.00021928,2]
[381815863,1756357874294,-784.19,0.00021928,2]
[381815864,1756357874303,-1198.44,0.00021928,2]
[381815865,1756357874313,-480.0,0.00021928,2]
[381815866,1756357874322,-682.49,0.00021928,2]
[381815867,1756357874332,-1129.71,0.00021928,2]
[381815868,1756357874342,-480.0,0.00021928,2]
[381815869,1756357874352,-1134.3,0.00021928,2]
[381815870,1756357874361,-490.66,0.00021928,2]
[381815871,1756357874371,-519.51,0.00021928,2]
[381815872,1756357874380,-658.74,0.00021928,2]
[381815873,1756357874391,-480.0,0.00021928,2]
[381815874,1756357874400,-480.0,0.00021928,2]
[381815875,1756357874410,-739.51,0.00021928,2]
[381815876,1756357874419,-480.0,0.00021928,2]
[381815877,1756357874430,-480.0,0.00021928,2]
[381815878,1756357874440,-525.76,0.00021928,2]
[381815879,1756357874450,-1627.79,0.00021928,2]
[381815880,1756357874460,-480.0,0.00021928,2]
[381815881,1756357874470,-480.0,0.00021928,2]
[381815882,1756357874480,-767.73,0.00021928,2]
[381815883,1756357874490,-480.0,0.00021928,2]
[381815884,1756357874500,-480.0,0.00021928,2]
[381815885,1756357874510,-1532.08,0.00021928,2]
[381815886,1756357874520,-1503.05,0.00021928,2]
[381815887,1756357874529,-824.33,0.00021928,2]
[381815888,1756357874539,-489.36,0.00021928,2]
[381815889,1756357874550,-586.84,0.00021928,2]
[381815890,1756357874559,-480.0,0.00021928,2]
[381815891,1756357874568,-3503.35,0.00021928,2]
[381815892,1756357874578,-503.75,0.00021928,2]
[381815893,1756357874587,-480.0,0.00021928,2]
[381815894,1756357874596,-761.51,0.00021928,2]
[381815895,1756357874605,-704.5,0.00021928,2]
[381815896,1756357874615,-723.72,0.00021928,2]
[381815897,1756357874624,-1276.85,0.00021928,2]
[381815898,1756357874634,-480.0,0.00021928,2]
[381815899,1756357874644,-480.0,0.00021928,2]
[381815900,1756357874653,-480.0,0.00021928,2]
[381815901,1756357874663,-480.0,0.00021928,2]
[381815902,1756357874672,-1166.04,0.00021928,2]
[381815903,1756357874682,-1002.35,0.00021928,2]
[381815904,1756357874691,-1455.86,0.00021928,2]
[381815905,1756357874700,-819.21,0.00021928,2]
[381815906,1756357874710,-480.0,0.00021928,2]
[381815907,1756357874719,-2444.59,0.00021928,2]
[381815908,1756357874728,-766.24,0.00021928,2]
[381815909,1756357874738,-480.0,0.00021928,2]
[381815910,1756357874748,-1830.55,0.00021928,2]
[381815911,1756357874758,-735.26,0.00021928,2]
[381815912,1756357874768,-480.0,0.00021928,2]
[381815913,1756357874777,-480.0,0.00021928,2]
[381815914,1756357874787,-523.99,0.00021928,2]
[381815915,1756357874796,-2483.8,0.00021928,2]
[381815916,1756357874805,-487.66,0.00021928,2]
[381815917,1756357874815,-1398.72,0.00021928,2]
[381815918,1756357874824,-480.0,0.00021928,2]
[381815919,1756357874833,-546.78,0.00021928,2]
[381815920,1756357874843,-480.0,0.00021928,2]
[381815921,1756357874852,-480.0,0.00021928,2]
[381815922,1756357874862,-480.0,0.00021928,2]
[381815923,1756357874871,-666.93,0.00021928,2]
[381815924,1756357874880,-480.0,0.00021928,2]
[381815925,1756357874890,-480.0,0.00021928,2]
[381815926,1756357874903,-495.39,0.00021928,2]
[381815927,1756357874911,-4058.33,0.00021928,2]
[381815928,1756357874921,-737.84,0.00021928,2]
[381815929,1756357874934,-1036.6,0.00021928,2]
[381815930,1756357874944,-480.0,0.00021928,2]
[381815931,1756357874954,-528.58,0.00021928,2]
[381815932,1756357874963,-3488.45,0.00021928,2]
[381815933,1756357874972,-480.0,0.00021928,2]
[381815934,1756357874981,-480.0,0.00021928,2]
[381815935,1756357874994,-480.0,0.00021928,2]
[381815936,1756357875004,-2192.53,0.00021928,2]
[381815937,1756357875013,-479.54842179,0.00021928,2]
[381815938,1756357875022,-834.38,0.00021928,2]
[381815939,1756357875031,-480.0,0.00021928,2]
[381815940,1756357875040,-614.2,0.00021928,2]
[381815941,1756357875050,-647.01,0.00021928,2]
[381815942,1756357875059,-338.68559655,0.00021928,2]
[381815943,1756357875072,-603.43,0.00021928,2]
[381815944,1756357875082,-480.0,0.00021928,2]
[381815945,1756357875091,-609.37,0.00021928,2]
[381815946,1756357875100,-1642.89,0.00021928,2]
[381815947,1756357875110,-547.64,0.00021928,2]
[381815948,1756357875121,-808.8,0.00021928,2]
[381815949,1756357875130,-926.55,0.00021928,2]
[381815950,1756357875140,-1672.0,0.00021928,2]
[381815951,1756357875150,-621.31,0.00021928,2]
[381815952,1756357875159,-1695.49,0.00021928,2]
[381815953,1756357875168,-633.59,0.00021928,2]
[381815954,1756357875178,-1149.85,0.00021928,2]
[381815955,1756357875187,-480.0,0.00021928,2]
[381815956,1756357875197,-480.0,0.00021929,2]
[381815957,1756357875207,-4914.21,0.00021929,2]
[381815958,1756357875216,-2549.75,0.00021929,2]
[381815959,1756357875226,-619.54,0.00021929,2]
[381815960,1756357875235,-4806.46,0.00021929,2]
[381815961,1756357875244,-637.66,0.00021929,2]
[381815962,1756357875255,-1581.21,0.00021929,2]
[381815963,1756357875264,-1167.81,0.00021931,2]
[381815964,1756357875274,-946.91,0.00021931,2]
[381815965,1756357875284,-609.78,0.00021931,2]
[381815966,1756357875294,-480.0,0.00021931,2]
[381815967,1756357875304,-500.0,0.00021934,2]
[381815968,1756357875313,-524.71,0.00021934,2]
[381815969,1756357875322,-655.02,0.00021934,2]
[381815970,1756357875333,-856.4,0.00021934,2]
[381815971,1756357875342,-514.53,0.00021934,2]
[381815972,1756357875352,-604.54,0.00021934,2]
[381815973,1756357875362,-526.58,0.00021934,2]
[381815974,1756357875371,-480.0,0.00021934,2]
[381815975,1756357875380,-480.0,0.00021934,2]
[381815976,1756357875390,-488.73,0.00021934,2]
[381815977,1756357875401,-991.16,0.00021934,2]
[381815978,1756357875411,-687.05,0.00021934,2]
[381815979,1756357875421,-815.5,0.00021934,2]
[381815980,1756357875430,-480.0,0.00021934,2]
[381815981,1756357875440,-795.63,0.00021934,2]
[381815982,1756357875450,-500.0,0.00021934,2]
[381815983,1756357875460,-480.0,0.00021934,2]
[381815984,1756357875469,-480.0,0.00021934,2]
[381815985,1756357875478,-1214.89,0.00021934,2]
[381815986,1756357875488,-757.81,0.00021934,2]
[381815987,1756357875497,-487.92,0.00021934,2]
[381815988,1756357875507,-503.45,0.00021934,2]
[381815989,1756357875516,-1130.61,0.00021934,2]
[381815990,1756357875526,-589.18,0.00021934,2]
[381815991,1756357875535,-610.99,0.00021934,2]
[381815992,1756357875545,-480.0,0.00021934,2]
[381815993,1756357875555,-480.0,0.00021934,2]
[381815994,1756357875565,-480.0,0.00021934,2]
[381815995,1756357875575,-480.0,0.00021934,2]
[381815996,1756357875584,-562.98,0.00021934,2]
[381815997,1756357875593,-480.0,0.00021934,2]
[381815998,1756357875603,-480.0,0.00021934,2]
[381815999,1756357875612,-480.0,0.00021934,2]
[381816000,1756357875621,-667.81,0.00021934,2]
[381816001,1756357875632,-480.0,0.00021934,2]
[381816002,1756357875641,-480.0,0.00021934,2]
[381816003,1756357875651,-506.48,0.00021934,2]
[381816004,1756357875660,-708.89,0.00021934,2]
[381816005,1756357875669,-480.0,0.00021934,2]
[381816006,1756357875679,-480.0,0.00021934,2]
[381816007,1756357875688,-480.0,0.00021934,2]
[381816008,1756357875698,-596.55,0.00021934,2]
[381816009,1756357875709,-881.6,0.00021934,2]
[381816010,1756357875720,-521.32,0.00021934,2]
[381816011,1756357875729,-480.0,0.00021934,2]
[381816012,1756357875739,-662.51,0.00021934,2]
[381816013,1756357875748,-853.94,0.00021934,2]
[381816014,1756357875758,-684.51,0.00021934,2]
[381816015,1756357875767,-525.5,0.00021934,2]
[381816016,1756357875776,-599.49,0.00021934,2]
[381816017,1756357875787,-391.62350029,0.00021934,2]
[381816018,1756357875796,-654.52,0.00021934,2]
[381816019,1756357875805,-510.29,0.00021934,2]
[381816020,1756357875814,-1154.7,0.00021934,2]
[381816021,1756357875823,-480.0,0.00021934,2]
[381816022,1756357875832,-480.0,0.00021934,2]
[381816023,1756357875842,-515.89,0.00021934,2]
[381816024,1756357875851,-480.0,0.00021934,2]
[381816025,1756357875861,-1500.0,0.00021968,2]
[381816026,1756357875871,-259.16286579,0.00021968,2]
[381816027,1756357875880,-1500.0,0.00021968,2]
[381816028,1756357875890,-1500.0,0.00021968,2]
[381816029,1756357875901,-1515.84763676,0.00021968,2]
[381816030,1756357875910,-1500.0,0.00021968,2]
[381816031,1756357875919,-1500.0,0.00021968,2]
[381816032,1756357875928,-1500.0,0.00021968,2]
[381816033,1756357875938,-1500.0,0.00021968,2]
[381816034,1756357875947,-501.15461714,0.00021968,2]
[381816035,1756357875958,-1500.0,0.00021968,2]
[381816036,1756357875967,-1500.0,0.00021968,2]
[381816037,1756357875976,-1001.38214879,0.00021968,2]
[381816038,1756357875986,-1500.0,0.00021968,2]
[381816039,1756357875998,-503.32526424,0.00021968,2]
[381816040,1756357876007,-1500.0,0.00021968,2]
[381816041,1756357876016,-1500.0,0.00021968,2]
[381816042,1756357876026,-1010.26063339,0.00021968,2]
[381816043,1756357876036,-215.83401308,0.00021968,2]
[381816044,1756357876045,-1362.42930821,0.00021968,2]
[381816045,1756357876055,-1500.0,0.00021968,2]
[381816046,1756357876066,-1500.0,0.00021968,2]
[381816047,1756357876075,-1500.0,0.00021968,2]
[381816048,1756357876084,-1500.0,0.00021968,2]
[381816049,1756357876093,-160.43103054,0.00021973,2]
[381816050,1756357876102,-180.12538956,0.00021973,2]
[381816051,1756357876112,-500.0,0.00021973,2]
[381816052,1756357876122,-500.0,0.00021973,2]
[381816053,1756357876131,-151.4981627,0.00021973,2]